[Event "11th LCC FIDE Open 2019"]
[Site "London"]
[Date "2019.12.03"]
[Round "6.45"]
[White "Marusenko, Petr"]
[Black "Gaier, Walter"]
[Result "1-0"]
[ECO "D08"]
[WhiteElo "2085"]
[BlackElo "1750"]
[Annotator "NA"]
[PlyCount "69"]
[EventDate "2019.11.29"]
[EventType "swiss"]
[EventCountry "ENG"]
[SourceTitle "playchess.com"]
[Source "ChessBase"]
[SourceQuality "1"]
[TimeControl "40/5400+30:1800+30"]

1. d4 {[%emt 0:03:25]} d5 {[%emt 0:03:30]} 2. c4 {[%emt 0:00:05]} e5 {[%emt 0:00:00]} 3. dxe5 {[%emt 0:00:08]} d4 {[%emt 0:00:00]} 4. Nf3 {[%emt 0:00:08]} c5 {[%emt 0:00:11]} 5. e3 {[%emt 0:02:25]} Nc6 {[%emt 0:00:12]} 6. exd4 {[%emt 0:00:05]} cxd4 {[%emt 0:00:09]} 7. Bd3 {[%emt 0:00:07]} f6 {[%emt 0:03:16]} 8. O-O {[%emt 0:12:29]} Bg4 {[%emt 0:03:46]} 9. Re1 {[%emt 0:16:12]} Be7 {[%emt 0:00:18]} 10. e6 {[%emt 0:02:15]} Qa5 {[%emt 0:04:50]} 11. Nbd2 {[%emt 0:05:25]} O-O-O {[%emt 0:08:57]} 12. a3 {[%emt 0:04:53]} Ne5 {[%emt 0:00:58]} 13. Be4 {[%emt 0:09:38]} Bxe6 {[%emt 0:12:24]} 14. Nb3 {[%emt 0:03:33]} Qa4 {[%emt 0:12:45]} 15. Bf4 {[%emt 0:04:53]} Bd6 {[%emt 0:14:36]} 16. Bxb7+ {[%emt 0:16:44]} Kb8 {[%emt 0:00:14]} 17. Bd5 {[%emt 0:00:36]} Bg4 {[%emt 0:02:00]} 18. Nbxd4 {[%emt 0:06:55]} Qxd1 {[%emt 0:01:08]} 19. Raxd1 {[%emt 0:00:22]} Ne7 {[%emt 0:00:43]} 20. Bxe5 {[%emt 0:02:19]} fxe5 {[%emt 0:05:57]} 21. Ne6 {[%emt 0:01:43]} Rd7 {[%emt 0:03:21]} 22. Rd3 {[%emt 0:00:55]} Nxd5 {[%emt 0:02:08]} 23. cxd5 {[%emt 0:00:24]} Re8 {[%emt 0:03:48]} 24. Neg5 {[%emt 0:00:11]} Bf5 {[%emt 0:08:26]} 25. Rde3 {[%emt 0:01:16]} h6 {[%emt 0:02:27]} 26. Nxe5 {[%emt 0:02:15]} Bxe5 {[%emt 0:01:39]} 27. Rxe5 {[%emt 0:00:02]} Rxe5 {[%emt 0:01:53]} 28. Rxe5 {[%emt 0:00:02]} Bg4 {[%emt 0:01:27]} 29. f3 {[%emt 0:00:40]} Bh5 {[%emt 0:00:22]} 30. Ne4 {[%emt 0:00:22]} Bf7 {[%emt 0:00:38]} 31. d6 {[%emt 0:00:12]} Bg6 {[%emt 0:02:03]} 32. Rd5 {[%emt 0:01:29]} Kc8 {[%emt 0:01:18]} 33. Nc5 {[%emt 0:00:41]} Rd8 {[%emt 0:00:10]} 34. d7+ {[%emt 0:00:12]} Kb8 {[%emt 0:00:54]} 35. Ne6 {[%emt 0:00:11]} 1-0

[Event "11th LCC FIDE Open 2019"]
[Site "London"]
[Date "2019.12.03"]
[Round "6.46"]
[White "Gopakumar, Siddharth"]
[Black "Wilks, Simon"]
[Result "1/2-1/2"]
[ECO "E20"]
[WhiteElo "1848"]
[BlackElo "2071"]
[Annotator "NA"]
[PlyCount "67"]
[EventDate "2019.11.29"]
[EventType "swiss"]
[EventCountry "ENG"]
[SourceTitle "playchess.com"]
[Source "ChessBase"]
[SourceQuality "1"]
[TimeControl "40/5400+30:1800+30"]

1. Nf3 {[%emt 1:23:40]} Nf6 {[%emt 0:03:58]} 2. c4 {[%emt 0:00:58]} e6 {[%emt 0:00:19]} 3. Nc3 {[%emt 0:00:23]} Bb4 {[%emt 0:00:37]} 4. g3 {[%emt 0:04:27]} O-O {[%emt 0:00:59]} 5. Bg2 {[%emt 0:00:06]} d5 {[%emt 0:00:56]} 6. cxd5 {[%emt 0:00:13]} exd5 {[%emt 0:00:08]} 7. d4 {[%emt 0:00:24]} c6 {[%emt 0:00:48]} 8. O-O {[%emt 0:00:25]} h6 {[%emt 0:01:05]} 9. Qc2 {[%emt 0:04:40]} Re8 {[%emt 0:01:15]} 10. a3 {[%emt 0:03:53]} Bd6 {[%emt 0:01:18]} 11. Re1 {[%emt 0:00:27]} Nbd7 {[%emt 0:00:55]} 12. e4 {[%emt 0:02:13]} Nxe4 {[%emt 0:01:38]} 13. Nxe4 {[%emt 0:00:37]} dxe4 {[%emt 0:00:05]} 14. Rxe4 {[%emt 0:00:11]} Rxe4 {[%emt 0:00:20]} 15. Qxe4 {[%emt 0:00:05]} Nf6 {[%emt 0:00:11]} 16. Qd3 {[%emt 0:02:34]} Be6 {[%emt 0:01:12]} 17. Nd2 {[%emt 0:01:32]} Be7 {[%emt 0:05:40]} 18. Ne4 {[%emt 0:01:02]} Bd5 {[%emt 0:00:37]} 19. Nc3 {[%emt 0:10:38]} Bxg2 {[%emt 0:01:11]} 20. Kxg2 {[%emt 0:00:01]} Qd7 {[%emt 0:00:55]} 21. Be3 {[%emt 0:00:56]} Rd8 {[%emt 0:01:39]} 22. b4 {[%emt 0:14:01]} b6 {[%emt 0:04:29]} 23. Qc4 {[%emt 0:03:51]} Nd5 {[%emt 0:03:38]} 24. Rc1 {[%emt 0:02:09]} Qe6 {[%emt 0:02:41]} 25. Nxd5 {[%emt 0:01:57]} cxd5 {[%emt 0:00:07]} 26. Qc7 {[%emt 0:01:43]} Rd7 {[%emt 0:02:55]} 27. Qc8+ {[%emt 0:01:04]} Kh7 {[%emt 0:00:21]} 28. Rc7 {[%emt 0:00:29]} Rxc7 {[%emt 0:01:19]} 29. Qxc7 {[%emt 0:00:02]} a6 {[%emt 0:00:40]} 30. Bf4 {[%emt 0:07:03]} g5 {[%emt 0:12:19]} 31. Be5 {[%emt 0:08:37]} f6 {[%emt 0:00:55]} 32. Qc2+ {[%emt 0:00:06]} Kg7 {[%emt 0:00:06]} 33. Bb8 {[%emt 0:00:31]} Bd8 {[%emt 0:02:09]} 34. a4 {[%emt 0:02:25]} 1/2-1/2

[Event "11th LCC FIDE Open 2019"]
[Site "London"]
[Date "2019.12.03"]
[Round "6.48"]
[White "Mugalu, Hassan"]
[Black "Dong, Bao Nghia"]
[Result "0-1"]
[ECO "A45"]
[WhiteElo "1836"]
[BlackElo "2217"]
[Annotator "ChessBase"]
[PlyCount "60"]
[EventDate "2019.11.29"]
[EventType "swiss"]
[EventCountry "ENG"]
[SourceTitle "playchess.com"]
[Source "ChessBase"]
[SourceQuality "1"]
[TimeControl "40/5400+30:1800+30"]

1. d4 {[%emt 0:03:11]} Nf6 {[%emt 0:19:27]} 2. Bf4 {[%emt 0:01:45]} c5 {[%emt 0:00:09]} 3. c3 {[%emt 0:01:41]} e6 {[%emt 0:00:12]} 4. e3 {[%emt 0:00:53]} cxd4 {[%emt 0:00:10]} 5. cxd4 {[%emt 0:00:53]} Nd5 {[%emt 0:00:09]} 6. Bg3 {[%emt 0:01:19]} Qb6 {[%emt 0:00:13]} 7. Qc2 {[%emt 0:06:14]} Nc6 {[%emt 0:02:58]} 8. a3 {[%emt 0:01:01]} f5 {[%emt 0:00:26]} 9. Nf3 {[%emt 0:01:02]} f4 {[%emt 0:00:59]} 10. exf4 {[%emt 0:06:18]} Nxd4 {[%emt 0:00:36]} 11. Nxd4 {[%emt 0:04:35]} Qxd4 {[%emt 0:00:06]} 12. f5 {[%emt 0:04:45]} Be7 {[%emt 0:10:37]} 13. Bd3 {[%emt 0:05:20]} Bf6 {[%emt 0:01:49]} 14. Ra2 {[%emt 0:02:34]} exf5 {[%emt 0:05:58]} 15. Bxf5 {[%emt 0:01:36]} g6 {[%emt 0:00:09]} 16. Be4 {[%emt 0:02:34]} O-O {[%emt 0:00:54]} 17. O-O {[%emt 0:00:20]} Re8 {[%emt 0:01:51]} 18. Bf3 {[%emt 0:05:53]} d6 {[%emt 0:08:33]} 19. Nc3 {[%emt 0:15:19]} Nxc3 {[%emt 0:00:36]} 20. bxc3 {[%emt 0:00:12]} Qc5 {[%emt 0:01:21]} 21. Qa4 {[%emt 0:02:38]} Be6 {[%emt 0:02:21]} 22. Re2 {[%emt 0:02:35]} b5 {[%emt 0:05:35]} 23. Qa6 {[%emt 0:07:59]} Rad8 {[%emt 0:00:17]} 24. Rd1 {[%emt 0:01:11]} Bb3 {[%emt 0:01:49]} 25. Rxd6 {[%emt 0:06:31]} Qxc3 {[%emt 0:01:25]} 26. Rxe8+ {[%emt 0:02:11]} Rxe8 {[%emt 0:00:04]} 27. h3 {[%emt 0:00:21]} Re1+ {[%emt 0:00:04]} 28. Kh2 {[%emt 0:00:33]} Qc1 {[%emt 0:01:25]} 29. Bf4 {[%emt 0:03:37]} Qxf4+ {[%emt 0:01:23]} 30. g3 {[%emt 0:00:15]} Qxf3 {[%emt 0:00:13]} 0-1

[Event "11th LCC FIDE Open 2019"]
[Site "London"]
[Date "2019.12.03"]
[Round "6.49"]
[White "Ditmas, Hugh"]
[Black "Johnson, Daniel"]
[Result "1/2-1/2"]
[ECO "E17"]
[WhiteElo "1961"]
[BlackElo "2186"]
[Annotator "ChessBase"]
[PlyCount "63"]
[EventDate "2019.11.29"]
[EventType "swiss"]
[EventCountry "ENG"]
[SourceTitle "playchess.com"]
[Source "ChessBase"]
[SourceQuality "1"]
[TimeControl "40/5400+30:1800+30"]

1. d4 {[%emt 0:00:00]} Nf6 {[%emt 0:09:32]} 2. c4 {[%emt 0:00:00]} e6 {[%emt 0:00:04]} 3. Nf3 {[%emt 0:00:00]} b6 {[%emt 0:01:29]} 4. g3 {[%emt 0:00:09]} Bb7 {[%emt 0:00:05]} 5. Bg2 {[%emt 0:00:14]} Be7 {[%emt 0:01:13]} 6. O-O {[%emt 0:00:46]} O-O {[%emt 0:00:09]} 7. d5 {[%emt 0:00:25]} exd5 {[%emt 0:00:57]} 8. Nh4 {[%emt 0:00:18]} c6 {[%emt 0:00:55]} 9. cxd5 {[%emt 0:00:10]} Nxd5 {[%emt 0:00:07]} 10. Nf5 {[%emt 0:00:48]} Nc7 {[%emt 0:03:27]} 11. e4 {[%emt 0:02:12]} d5 {[%emt 0:00:55]} 12. Nc3 {[%emt 0:05:29]} Bf6 {[%emt 0:08:46]} 13. Bf4 {[%emt 0:10:19]} d4 {[%emt 0:49:15]} 14. e5 {[%emt 0:14:44]} dxc3 {[%emt 0:02:58]} 15. exf6 {[%emt 0:01:40]} Qxf6 {[%emt 0:01:01]} 16. Nxg7 {[%emt 0:13:16]} Qxg7 {[%emt 0:02:05]} 17. Bxc7 {[%emt 0:03:01]} cxb2 {[%emt 0:00:33]} 18. Rb1 {[%emt 0:00:47]} Na6 {[%emt 0:01:22]} 19. Bf4 {[%emt 0:01:13]} Nc5 {[%emt 0:02:16]} 20. Qh5 {[%emt 0:06:09]} Rfe8 {[%emt 0:07:15]} 21. Bh6 {[%emt 0:09:13]} Qc3 {[%emt 0:02:56]} 22. Be3 {[%emt 0:06:13]} Ne6 {[%emt 0:02:18]} 23. Rfd1 {[%emt 0:07:53]} Rad8 {[%emt 0:00:46]} 24. Rxd8 {[%emt 0:01:30]} Rxd8 {[%emt 0:01:00]} 25. Be4 {[%emt 0:00:58]} Qg7 {[%emt 0:00:34]} 26. Bh6 {[%emt 0:01:32]} Qf6 {[%emt 0:00:29]} 27. Bxh7+ {[%emt 0:01:50]} Kh8 {[%emt 0:00:32]} 28. Be4 {[%emt 0:02:50]} Kg8 {[%emt 0:00:29]} 29. Bh7+ {[%emt 0:05:13]} Kh8 {[%emt 0:00:03]} 30. Be4 {[%emt 0:01:36]} Kg8 {[%emt 0:00:54]} 31. Bh7+ {[%emt 0:00:12]} Kh8 {[%emt 0:00:15]} 32. Be4 {[%emt 0:00:33]} 1/2-1/2

[Event "11th LCC FIDE Open 2019"]
[Site "London"]
[Date "2019.12.03"]
[Round "6.51"]
[White "Chapman, Matt"]
[Black "Bates, Caspar J"]
[Result "1/2-1/2"]
[ECO "A48"]
[WhiteElo "1937"]
[BlackElo "2120"]
[Annotator "ChessBase"]
[PlyCount "68"]
[EventDate "2019.11.29"]
[EventType "swiss"]
[EventCountry "ENG"]
[SourceTitle "playchess.com"]
[Source "ChessBase"]
[SourceQuality "1"]
[TimeControl "40/5400+30:1800+30"]

1. d4 {[%emt 0:00:16]} Nf6 {[%emt 0:00:00]} 2. Nf3 {[%emt 0:00:00]} b6 {[%emt 0:00:42]} 3. Bf4 {[%emt 0:00:59]} Bb7 {[%emt 0:00:34]} 4. Nbd2 {[%emt 0:01:12]} g6 {[%emt 0:00:52]} 5. e3 {[%emt 0:00:58]} c5 {[%emt 0:08:26]} 6. c3 {[%emt 0:01:07]} Bg7 {[%emt 0:01:19]} 7. Bd3 {[%emt 0:02:22]} cxd4 {[%emt 0:02:17]} 8. exd4 {[%emt 0:01:07]} O-O {[%emt 0:00:34]} 9. O-O {[%emt 0:01:24]} d6 {[%emt 0:00:53]} 10. Re1 {[%emt 0:00:47]} Nbd7 {[%emt 0:00:32]} 11. a4 {[%emt 0:04:19]} Re8 {[%emt 0:02:29]} 12. Qc2 {[%emt 0:13:19]} Rc8 {[%emt 0:01:25]} 13. Bg3 {[%emt 0:03:06]} Nh5 {[%emt 0:09:10]} 14. a5 {[%emt 0:01:14]} Nxg3 {[%emt 0:01:13]} 15. hxg3 {[%emt 0:00:06]} e5 {[%emt 0:17:29]} 16. Qb3 {[%emt 0:01:34]} exd4 {[%emt 0:06:18]} 17. Rxe8+ {[%emt 0:00:20]} Qxe8 {[%emt 0:00:03]} 18. cxd4 {[%emt 0:00:20]} Bxf3 {[%emt 0:10:42]} 19. Nxf3 {[%emt 0:00:06]} bxa5 {[%emt 0:00:10]} 20. Qb7 {[%emt 0:06:54]} Qd8 {[%emt 0:06:25]} 21. Qxa7 {[%emt 0:06:28]} Nf6 {[%emt 0:00:58]} 22. Qxa5 {[%emt 0:23:05]} Rc1+ {[%emt 0:01:04]} 23. Bf1 {[%emt 0:00:18]} Qxa5 {[%emt 0:00:11]} 24. Rxa5 {[%emt 0:00:06]} Rb1 {[%emt 0:03:51]} 25. Ra8+ {[%emt 0:02:11]} Bf8 {[%emt 0:00:01]} 26. Rb8 {[%emt 0:02:18]} Ne4 {[%emt 0:00:18]} 27. g4 {[%emt 0:01:18]} d5 {[%emt 0:03:07]} 28. g3 {[%emt 0:01:24]} Kg7 {[%emt 0:01:14]} 29. Kg2 {[%emt 0:00:56]} Ba3 {[%emt 0:01:13]} 30. Bd3 {[%emt 0:03:59]} Rxb2 {[%emt 0:00:40]} 31. Rxb2 {[%emt 0:00:06]} Bxb2 {[%emt 0:00:15]} 32. Bxe4 {[%emt 0:01:35]} dxe4 {[%emt 0:00:09]} 33. Nd2 {[%emt 0:00:13]} Bxd4 {[%emt 0:02:43]} 34. Nxe4 {[%emt 0:00:08]} h6 {[%emt 0:01:33]} 1/2-1/2

[Event "11th LCC FIDE Open 2019"]
[Site "London"]
[Date "2019.12.03"]
[Round "6.52"]
[White "Kuzhelev, Timur"]
[Black "Coote, Trevor D"]
[Result "1-0"]
[ECO "C01"]
[WhiteElo "1716"]
[BlackElo "2075"]
[Annotator "NA RC"]
[PlyCount "116"]
[EventDate "2019.11.29"]
[EventType "swiss"]
[EventCountry "ENG"]
[SourceTitle "playchess.com"]
[Source "ChessBase"]
[SourceQuality "1"]
[TimeControl "40/5400+30:1800+30"]

1. e4 {[%emt 0:00:00]} e6 {[%emt 0:00:00]} 2. d4 {[%emt 0:00:00]} d5 {[%emt 0:00:00]} 3. exd5 {[%emt 0:00:00]} exd5 {[%emt 0:00:00]} 4. c4 {[%emt 0:00:01]} Nf6 {[%emt 0:00:07]} 5. Nc3 {[%emt 0:00:05]} Be7 {[%emt 0:00:22]} 6. Nf3 {[%emt 0:00:14]} O-O {[%emt 0:00:12]} 7. Be2 {[%emt 0:00:03]} Nc6 {[%emt 0:06:30]} 8. O-O {[%emt 0:01:02]} Bg4 {[%emt 0:01:22]} 9. cxd5 {[%emt 0:04:47]} Nxd5 {[%emt 0:05:22]} 10. h3 {[%emt 0:02:51] C01: French: Exchange Variation} Be6 {[%emt 0:01:22]} 11. Bd3 {[%emt 0:04:43]} Bf6 {[%emt 0:03:49]} 12. Be3 {[%emt 0:00:36]} g6 $146 {[%emt 0:04:30]} ({Predecessor:} 12... Nce7 13. Ne4 Bf5 14. Qb3 Bxe4 15. Bxe4 {½-½ (29) Sokolov,A (2520)-Zaharov,A (2305) Novgorod 1995}) 13. Ne4 {[%emt 0:00:59]} Bg7 {[%emt 0:04:54]} 14. Nc5 {[%emt 0:00:35]} Qc8 {[%emt 0:00:47]} 15. Re1 {[%emt 0:13:21]} Re8 {[%emt 0:10:15]} 16. Bb5 {[%emt 0:05:35]} a6 {[%emt 0:13:28]} 17. Bxc6 {[%emt 0:01:44]} bxc6 {[%emt 0:00:01]} 18. Ne5 {[%emt 0:03:12]} Bxe5 {[%emt 0:02:13]} 19. dxe5 {[%emt 0:00:03]} Rb8 {[%emt 0:05:49]} 20. b3 {[%emt 0:16:30]} Rb4 {[%emt 0:04:59]} 21. Qf3 {[%emt 0:07:46]} Rh4 {[%emt 0:06:33]} 22. Bg5 {[%emt 0:03:21]} Rh5 {[%emt 0:02:50]} 23. Nxe6 {[%emt 0:00:07]} Qxe6 {[%emt 0:00:00]} 24. h4 {[%emt 0:00:06]} Qf5 {[%emt 0:00:39]} 25. Qxf5 {[%emt 0:01:27]} gxf5 {[%emt 0:00:02]} 26. g3 {[%emt 0:02:25]} Re6 {[%emt 0:04:04]} 27. f3 {[%emt 0:00:31]} Rg6 {[%emt 0:00:25]} 28. g4 {[%emt 0:02:01]} fxg4 {[%emt 0:00:11]} 29. fxg4 {[%emt 0:00:14]} Rxh4 {[%emt 0:00:11]} 30. Bxh4 {[%emt 0:00:07]} Rxg4+ {[%emt 0:00:02]} 31. Kf2 {[%emt 0:00:11]} Rxh4 {[%emt 0:00:39]} 32. e6 {[%emt 0:00:07]} fxe6 {[%emt 0:01:31]} 33. Rxe6 {[%emt 0:00:10]} Rh2+ {[%emt 0:00:24]} 34. Kg3 {[%emt 0:04:26]} Rc2 {[%emt 0:00:59]} 35. Rf1 {[%emt 0:02:46]} a5 {[%emt 0:05:00]} 36. a4 {[%emt 0:00:39]} Kg7 {[%emt 0:02:50]} 37. Rf3 {[%emt 0:03:03]} Rc1 {[%emt 0:00:38]} 38. Kh3 {[%emt 0:08:02]} Rh1+ {[%emt 0:05:00]} 39. Kg2 {[%emt 0:00:09]} Rc1 {[%emt 0:00:31]} 40. Rg3+ {[%emt 0:02:03]} Kf7 {[%emt 0:00:52]} 41. Rh6 {[%emt 0:32:14]} Rc2+ {[%emt 0:32:00]} 42. Kf1 {[%emt 0:02:19]} Ke7 {[%emt 0:04:01]} 43. Rg7+ {[%emt 0:04:15]} Kd8 {[%emt 0:00:58]} 44. Rhxh7 {[%emt 0:00:06]} Kc8 {[%emt 0:00:24]} 45. Rg8+ {[%emt 0:00:45]} Kb7 {[%emt 0:00:22]} 46. Rhh8 {[%emt 0:00:09]} Nb6 $1 {[%emt 0:00:00]} 47. Rh3 {[%emt 0:00:00]} c5 $1 {[%emt 0:00:00]} 48. Rg5 {[%emt 0:00:00]} Kc6 {[%emt 0:00:00]} 49. Ke1 {[%emt 0:00:00]} c4 {[%emt 0:00:00]} 50. Rh6+ {[%emt 0:00:00]} Kb7 {[%emt 0:00:00]} 51. b4 {[%emt 0:00:00]} axb4 {[%emt 0:00:00]} 52. a5 {[%emt 0:00:00]} b3 $11 {[%emt 0:00:05]} 53. Kd1 {[%emt 0:16:59]} Na4 {[%emt 0:00:02]} 54. a6+ {[%emt 0:00:25]} Ka7 {[%emt 0:00:02]} 55. Rg7 Nc3+ {[%emt 0:00:02]} 56. Ke1 Re2+ {[%emt 0:00:03]} 57. Kf1 Rc2 {[%emt 0:00:05]} 58. Ke1 {[%emt 0:00:03]} Nb5 1-0

[Event "11th LCC FIDE Open 2019"]
[Site "London"]
[Date "2019.12.03"]
[Round "6.53"]
[White "Ciocan, Maria-Alexandra"]
[Black "Jacobs, Robert"]
[Result "1-0"]
[ECO "B30"]
[WhiteElo "2058"]
[BlackElo "1935"]
[Annotator "NA"]
[PlyCount "51"]
[EventDate "2019.11.29"]
[EventType "swiss"]
[EventCountry "ENG"]
[SourceTitle "playchess.com"]
[Source "ChessBase"]
[SourceQuality "1"]
[TimeControl "40/5400+30:1800+30"]

1. e4 {[%emt 0:01:19]} c5 {[%emt 0:00:00]} 2. Nf3 {[%emt 0:00:07]} Nc6 {[%emt 0:00:00]} 3. Bb5 {[%emt 0:00:07]} e6 {[%emt 0:00:15]} 4. O-O {[%emt 0:03:28]} Nge7 {[%emt 0:00:12]} 5. c3 {[%emt 0:04:38]} a6 {[%emt 0:01:29]} 6. Ba4 {[%emt 0:04:58]} b5 {[%emt 0:01:39]} 7. Bc2 {[%emt 0:00:04]} Qc7 {[%emt 0:01:53]} 8. d4 {[%emt 0:05:27]} cxd4 {[%emt 0:03:43]} 9. cxd4 {[%emt 0:01:34]} d5 {[%emt 0:00:39]} 10. Nc3 {[%emt 0:05:37]} Nb4 {[%emt 0:21:15]} 11. Bb3 {[%emt 0:10:39]} Bb7 {[%emt 0:14:30]} 12. Ne5 {[%emt 0:10:27]} Ng6 {[%emt 0:08:02]} 13. a3 {[%emt 0:08:23]} dxe4 {[%emt 0:09:30]} 14. axb4 {[%emt 0:05:21]} Nxe5 {[%emt 0:02:25]} 15. dxe5 {[%emt 0:01:39]} Qxe5 {[%emt 0:00:23]} 16. g3 {[%emt 0:06:31]} Bxb4 {[%emt 0:02:44]} 17. Bf4 {[%emt 0:01:43]} Qf5 {[%emt 0:01:02]} 18. Nxb5 {[%emt 0:11:01]} O-O {[%emt 0:07:47]} 19. Nd6 {[%emt 0:01:00]} Bxd6 {[%emt 0:00:39]} 20. Qxd6 {[%emt 0:00:06]} Rfd8 {[%emt 0:07:28]} 21. Qe5 {[%emt 0:01:51]} Qg4 {[%emt 0:00:47]} 22. Be3 {[%emt 0:01:27]} Bc6 {[%emt 0:03:43]} 23. Bc4 {[%emt 0:01:28]} h5 {[%emt 0:01:25]} 24. Qg5 {[%emt 0:02:06]} Qh3 {[%emt 0:01:42]} 25. Rxa6 {[%emt 0:01:13]} Rxa6 {[%emt 0:00:31]} 26. Qxd8+ {[%emt 0:00:18]} 1-0

[Event "11th LCC FIDE Open 2019"]
[Site "London"]
[Date "2019.12.03"]
[Round "6.54"]
[White "Rushbrooke, Remy"]
[Black "Saidmurodov, Shahjahon"]
[Result "0-1"]
[ECO "B06"]
[WhiteElo "2053"]
[BlackElo "1812"]
[Annotator "NA"]
[PlyCount "64"]
[EventDate "2019.11.29"]
[EventType "swiss"]
[EventCountry "ENG"]
[SourceTitle "playchess.com"]
[Source "ChessBase"]
[SourceQuality "1"]
[TimeControl "40/5400+30:1800+30"]

1. d4 {[%emt 0:00:00]} c6 {[%emt 0:00:00]} 2. e4 {[%emt 0:00:00]} d6 {[%emt 0:00:05]} 3. f4 {[%emt 0:01:52]} g6 {[%emt 0:03:21]} 4. Nc3 {[%emt 0:00:14]} Bg7 {[%emt 0:00:29]} 5. Nf3 {[%emt 0:00:06]} Bg4 {[%emt 0:01:41]} 6. Be3 {[%emt 0:01:56]} Qb6 {[%emt 0:07:45]} 7. Rb1 {[%emt 0:02:15]} Nd7 {[%emt 0:13:16]} 8. Be2 {[%emt 0:00:19]} Bxf3 {[%emt 0:05:34]} 9. Bxf3 {[%emt 0:00:07]} e5 {[%emt 0:00:51]} 10. O-O {[%emt 0:05:33]} Ne7 {[%emt 0:09:37]} 11. Ne2 {[%emt 0:01:18]} f5 {[%emt 0:11:34]} 12. Bf2 {[%emt 0:06:28]} Qc7 {[%emt 0:03:14]} 13. fxe5 {[%emt 0:05:46]} dxe5 {[%emt 0:00:25]} 14. d5 {[%emt 0:07:10]} cxd5 {[%emt 0:01:35]} 15. exd5 {[%emt 0:04:23]} Qd6 {[%emt 0:00:46]} 16. Nc3 {[%emt 0:14:19]} a6 {[%emt 0:01:06]} 17. Be2 {[%emt 0:01:39]} O-O {[%emt 0:02:26]} 18. Bc4 {[%emt 0:00:25]} e4 {[%emt 0:04:28]} 19. a3 {[%emt 0:02:03]} Be5 {[%emt 0:04:14]} 20. h3 {[%emt 0:00:17]} b5 {[%emt 0:01:05]} 21. Bb3 {[%emt 0:01:06]} Nf6 {[%emt 0:03:23]} 22. Qe1 {[%emt 0:06:05]} Kg7 {[%emt 0:02:47]} 23. g3 {[%emt 0:02:09]} g5 {[%emt 0:04:42]} 24. Rd1 {[%emt 0:03:10]} Rac8 {[%emt 0:01:20]} 25. Kg2 {[%emt 0:03:12]} Rxc3 {[%emt 0:03:50]} 26. bxc3 {[%emt 0:00:10]} f4 {[%emt 0:00:07]} 27. Bd4 {[%emt 0:03:11]} f3+ {[%emt 0:00:07]} 28. Kh2 {[%emt 0:00:39]} Bxd4 {[%emt 0:01:44]} 29. cxd4 {[%emt 0:04:57]} Nf5 {[%emt 0:02:13]} 30. Qf2 {[%emt 0:00:56]} Nh6 {[%emt 0:01:58]} 31. Qd2 {[%emt 0:02:36]} e3 {[%emt 0:00:53]} 32. Qb4 {[%emt 0:00:49]} Qxb4 {[%emt 0:02:43]} 0-1

[Event "11th LCC FIDE Open 2019"]
[Site "London"]
[Date "2019.12.03"]
[Round "6.55"]
[White "Chilton, James I"]
[Black "Ho, Conrad"]
[Result "0-1"]
[ECO "B07"]
[WhiteElo "1711"]
[BlackElo "2046"]
[Annotator "NA"]
[PlyCount "52"]
[EventDate "2019.11.29"]
[EventType "swiss"]
[EventCountry "ENG"]
[SourceTitle "playchess.com"]
[Source "ChessBase"]
[SourceQuality "1"]
[TimeControl "40/5400+30:1800+30"]

1. e4 {[%emt 1:16:34]} d6 {[%emt 0:06:26]} 2. d4 {[%emt 0:00:14]} Nf6 {[%emt 0:00:05]} 3. Nc3 {[%emt 0:01:09]} e5 {[%emt 0:00:04]} 4. dxe5 {[%emt 0:02:05]} dxe5 {[%emt 0:00:06]} 5. Qxd8+ {[%emt 0:00:48]} Kxd8 {[%emt 0:00:06]} 6. Bg5 {[%emt 0:00:48]} Be6 {[%emt 0:00:56]} 7. O-O-O+ {[%emt 0:03:05]} Nbd7 {[%emt 0:00:05]} 8. Nf3 {[%emt 0:06:03]} Kc8 {[%emt 0:00:15]} 9. Bb5 {[%emt 0:10:52]} c6 {[%emt 0:00:56]} 10. Be2 {[%emt 0:01:58]} Bb4 {[%emt 0:03:16]} 11. Bxf6 {[%emt 0:10:31]} gxf6 {[%emt 0:09:20]} 12. a3 {[%emt 0:08:35]} Bxc3 {[%emt 0:08:57]} 13. bxc3 {[%emt 0:00:03]} Nc5 {[%emt 0:08:28]} 14. Bd3 {[%emt 0:00:34]} Kc7 {[%emt 0:03:22]} 15. Rd2 {[%emt 0:02:09]} Rad8 {[%emt 0:01:48]} 16. Rhd1 {[%emt 0:00:29]} Rd7 {[%emt 0:01:43]} 17. Nh4 {[%emt 0:01:05]} Rhd8 {[%emt 0:01:44]} 18. Nf5 {[%emt 0:00:56]} Na4 {[%emt 0:02:30]} 19. c4 {[%emt 0:01:20]} Nc3 {[%emt 0:01:08]} 20. Re1 {[%emt 0:02:52]} Nxe4 {[%emt 0:01:55]} 21. Rde2 {[%emt 0:04:03]} Nc3 {[%emt 0:02:44]} 22. Re3 {[%emt 0:02:09]} e4 {[%emt 0:01:06]} 23. Bf1 {[%emt 0:01:19]} Rd1+ {[%emt 0:00:52]} 24. Kb2 {[%emt 0:03:52]} Na4+ {[%emt 0:00:12]} 25. Kb3 {[%emt 0:00:57]} Nc5+ {[%emt 0:00:16]} 26. Kb4 {[%emt 0:00:53]} Na6+ {[%emt 0:00:16]} 0-1

[Event "11th LCC FIDE Open 2019"]
[Site "London"]
[Date "2019.12.03"]
[Round "6.56"]
[White "Taylor, William J"]
[Black "Hughes, Anthony"]
[Result "1-0"]
[ECO "B03"]
[WhiteElo "1993"]
[BlackElo "1874"]
[Annotator "NA"]
[PlyCount "56"]
[EventDate "2019.11.29"]
[EventType "swiss"]
[EventCountry "ENG"]
[SourceTitle "playchess.com"]
[Source "ChessBase"]
[SourceQuality "1"]
[TimeControl "40/5400+30:1800+30"]

1. e4 {[%emt 0:33:54]} Nf6 {[%emt 0:03:54]} 2. e5 {[%emt 0:00:23]} Nd5 {[%emt 0:00:06]} 3. d4 {[%emt 0:00:08]} d6 {[%emt 0:00:07]} 4. c4 {[%emt 0:00:48]} Nb6 {[%emt 0:00:10]} 5. exd6 {[%emt 0:00:07]} cxd6 {[%emt 0:01:02]} 6. Nc3 {[%emt 0:02:41]} g6 {[%emt 0:00:38]} 7. Be3 {[%emt 0:01:06]} Bg7 {[%emt 0:00:27]} 8. Rc1 {[%emt 0:00:06]} O-O {[%emt 0:00:36]} 9. b3 {[%emt 0:11:30]} Nc6 {[%emt 0:07:44]} 10. d5 {[%emt 0:02:21]} Ne5 {[%emt 0:06:25]} 11. h3 {[%emt 0:02:10]} a5 {[%emt 0:10:56]} 12. f4 {[%emt 0:09:09]} Ned7 {[%emt 0:01:33]} 13. Nf3 {[%emt 0:00:16]} Nc5 {[%emt 0:04:28]} 14. Be2 {[%emt 0:07:15]} Bxc3+ {[%emt 0:22:22]} 15. Rxc3 {[%emt 0:00:08]} Ne4 {[%emt 0:00:06]} 16. Rc1 {[%emt 0:07:16]} Ng3 {[%emt 0:00:22]} 17. Rg1 {[%emt 0:00:19]} e5 {[%emt 0:10:42]} 18. dxe6 {[%emt 0:32:08]} Re8 {[%emt 0:09:33]} 19. Qd4 {[%emt 0:04:07]} Rxe6 {[%emt 0:00:31]} 20. Bd3 {[%emt 0:03:37]} Nf5 {[%emt 0:15:58]} 21. Bxf5 {[%emt 0:00:12]} gxf5 {[%emt 0:00:05]} 22. Kf2 {[%emt 0:00:42]} Nd7 {[%emt 0:00:58]} 23. g4 {[%emt 0:02:14]} Rf6 {[%emt 0:00:38]} 24. gxf5+ {[%emt 0:01:41]} Kf8 {[%emt 0:00:42]} 25. Ng5 {[%emt 0:01:14]} Ke7 {[%emt 0:00:53]} 26. Qe4+ {[%emt 0:08:16]} Ne5 {[%emt 0:00:05]} 27. fxe5 {[%emt 0:00:08]} Rxf5+ {[%emt 0:00:02]} 28. Nf3 {[%emt 0:00:15]} Rxe5 {[%emt 0:02:54]} 1-0